Cogmind - Beta 12 X6 @@@ ROGUE MODE // 2023.02.23 @ 10:28:30 // AFD2019/Pay2Buy Player: ArabianSandBoa Result: Self-destructed Performance ------------- Evolutions (2) 1000 Regions Visited (8) 1600 Robots Destroyed (6) 30 Value Destroyed (133) 133 Prototype IDs (1) 20 Alien Tech Used (0) 0 Bonus (500) 500 TOTAL SCORE: 3283 Bonus ------- Entered Garrisons 200 Aligned with FarCom 300 Cogmind --------- Core Integrity 505/550 Matter 0/300 Energy 160/160 System Corruption 0% Temperature Cool (0) Movement Treading (160) Location -8/Garrison Parts ------- > --- POWER (1) -------- Light Nuclear Core > --- PROPULSION (2) --- Spiked Treads Spiked Treads > --- UTILITY (6) ------ Experimental Sensor Array Improved Signal Interpreter Medium Armor Plating Long-range Tractor Beam > --- WEAPON (2) ------- Mini Grenade Launcher > --- INVENTORY (10) --- Medium Armor Plating Peak State ------------ > --- POWER ------------ Light Nuclear Core > --- PROPULSION ------- Spiked Treads Spiked Treads > --- UTILITY ---------- Experimental Sensor Array Improved Signal Interpreter Medium Armor Plating Long-range Tractor Beam > --- WEAPON ----------- Mini Grenade Launcher > --- INVENTORY -------- Medium Armor Plating [Rating: 26] Favorites ----------- Power Light Nuclear Core Power Core Light Nuclear Core Propulsion Spiked Treads Treads Spiked Treads Utility Medium Armor Plating Device Experimental Sensor Array Processor Improved Signal Interpreter Protection Medium Armor Plating Weapon Mini Grenade Launcher Launcher Mini Grenade Launcher Build | -11 -10 -10 -9 -9 -9 -8 -8 -8 ------- Run | Jun Mat Min Mat Min Exi Min Mat Gar Slots Evolved 4 | . . . 2 . . . 2 . Power . | . . . . . . . . . Propulsion . | . . . . . . . . . Utility 4 | . . . 2 . . . 2 . Weapon . | . . . . . . . . . Parts Attached 1 | . . . 1 . . . . . Power . | . . . . . . . . . Engine . | . . . . . . . . . Core . | . . . . . . . . . Reactor . | . . . . . . . . . Propulsion . | . . . . . . . . . Treads . | . . . . . . . . . Leg . | . . . . . . . . . Wheel . | . . . . . . . . . Hover . | . . . . . . . . . Flight . | . . . . . . . . . Utility 1 | . . . 1 . . . . . Device 1 | . . . 1 . . . . . Storage . | . . . . . . . . . Processor . | . . . . . . . . . Hackware . | . . . . . . . . . Protection . | . . . . . . . . . Artifact . | . . . . . . . . . Weapon . | . . . . . . . . . Energy Gun . | . . . . . . . . . Energy Cannon . | . . . . . . . . . Ballistic Gun . | . . . . . . . . . Ballistic Cannon . | . . . . . . . . . Launcher . | . . . . . . . . . Special Weapon . | . . . . . . . . . Impact Weapon . | . . . . . . . . . Slashing Weapon . | . . . . . . . . . Piercing Weapon . | . . . . . . . . . Special Melee Weapon . | . . . . . . . . . Unidentified Prototypes 1 | . . . 1 . . . . . Parts Lost . | . . . . . . . . . Power . | . . . . . . . . . Propulsion . | . . . . . . . . . Utility . | . . . . . . . . . Weapon . | . . . . . . . . . Highest Loss Streak . | . . . . . . . . . To Critical Strikes . | . . . . . . . . . Average Slot Usage (%) 79 | . . 71 77 88 88 88 72 72 Core 7 | . . . 1 11 11 11 9 9 Treads 21 | . . 28 22 22 22 22 18 18 Device 16 | . . . 15 22 22 22 18 18 Processor 8 | . . . 11 11 11 11 9 9 Protection 14 | . . 28 16 11 11 11 9 9 Launcher 10 | . . 14 11 11 11 11 9 9 Naked Turns 32 | . 32 . . . . . . . Heaviest Build 16 | . . 15 16 15 15 15 15 15 Greatest Support 40 | 3 3 40 40 40 40 40 40 40 Greatest Overweight (x) . | . . . . . . . . . Average Overweight (x) . | . . . . . . . . . Largest Inventory Capacity 10 | . 10 10 10 10 10 10 10 10 Average Capacity 10 | . 10 10 10 10 10 10 10 10 Most Carried 1 | . . 1 1 1 1 1 1 1 Average Carried . | . . . . 1 1 1 1 1 Final Capacity 10 | 10 10 10 10 10 10 10 10 10 Final Carried 1 | . . 1 1 1 1 1 1 1 Class Distribution -------------------- 100% | Mutant Dominant Class ---------------- Mutant | -10/Materials Mutant | -10/Mines Mutant | -9/Materials Mutant | -9/Mines Mutant | -9/Exiles Mutant | -8/Mines Mutant | -8/Materials Mutant | -8/Garrison Resources | -11 -10 -10 -9 -9 -9 -8 -8 -8 ----------- Run | Jun Mat Min Mat Min Exi Min Mat Gar Matter Collected . | . . . . . . . . . Remotely . | . . . . . . . . . Salvage Created 128 | . . 75 53 . . . . . Parts . | . . . . . . . . . Haulers Intercepted 1 | . . . 1 . . . . . Recyclers Shooed . | . . . . . . . . . Parts Field Recycled . | . . . . . . . . . Retrieved Matter . | . . . . . . . . . Parts Self-Destructed . | . . . . . . . . . Prevented . | . . . . . . . . . Kills | -11 -10 -10 -9 -9 -9 -8 -8 -8 ------- Run | Jun Mat Min Mat Min Exi Min Mat Gar Combat Hostiles Destroyed 5 | . . 2 3 . . . . . AOE 5 | . . 2 3 . . . . . Classes Destroyed 3 | . . 1 2 . . . . . Hauler 1 | . . . 1 . . . . . Swarmer 3 | . . . 3 . . . . . Grunt 2 | . . 2 . . . . . . Best Kill Streak 4 | . . 2 4 . . . . . Combat Bots Only 3 | . . 2 3 . . . . . Max Kills in Single Turn 2 | . . 2 1 . . . . . Gunslinging . | . . . . . . . . . Exploded 2 | . . 2 1 . . . . . Melee . | . . . . . . . . . Uniques/NPCs Destroyed . | . . . . . . . . . Combat | -11 -10 -10 -9 -9 -9 -8 -8 -8 -------- Run | Jun Mat Min Mat Min Exi Min Mat Gar Damage Taken 346 | . 14 12 114 . . . 39 167 Core 68 | . 14 4 5 . . . 13 32 Absorbed by Shields . | . . . . . . . . . Core Remaining (%) 96 | 100 . 92 . . . 98 . . Volleys Fired 9 | . . 1 6 . 1 . 1 . Largest 1 | . . 1 1 . 1 . 1 . Hottest 30 | . . 30 30 . 30 . 30 . Shots Fired 9 | . . 1 6 . 1 . 1 . Gun . | . . . . . . . . . Cannon . | . . . . . . . . . Launcher 9 | . . 1 6 . 1 . 1 . Special . | . . . . . . . . . Kinetic . | . . . . . . . . . Thermal . | . . . . . . . . . Explosive 9 | . . 1 6 . 1 . 1 . Electromagnetic . | . . . . . . . . . Robot Hit Streak 1 | . . 1 1 . . . . . Robot Miss Streak 1 | . . . 1 . . . . . Penetration Max . | . . . . . . . . . Secondary Targets . | . . . . . . . . . Shots Hit Robots 2 | . . 1 1 . . . . . Core Hits 11 | . . 3 8 . . . . . Critical Kills . | . . . . . . . . . Critical Parts Destroyed . | . . . . . . . . . Critical Strikes . | . . . . . . . . . Melee Attacks . | . . . . . . . . . Impact . | . . . . . . . . . Slashing . | . . . . . . . . . Piercing . | . . . . . . . . . Sneak Attacks . | . . . . . . . . . Combat Hostiles . | . . . . . . . . . Follow-up Attacks . | . . . . . . . . . Damage Inflicted 256 | . . 84 172 . . . . . Guns . | . . . . . . . . . Cannons . | . . . . . . . . . Explosions 256 | . . 84 172 . . . . . Melee . | . . . . . . . . . Ramming . | . . . . . . . . . Kinetic . | . . . . . . . . . Thermal . | . . . . . . . . . Explosive 256 | . . 84 172 . . . . . Electromagnetic . | . . . . . . . . . Impact . | . . . . . . . . . Slashing . | . . . . . . . . . Piercing . | . . . . . . . . . Highest Corruption . | . . . . . . . . . Average Corruption . | . . . . . . . . . Corruption Purged . | . . . . . . . . . Corruption Blocked . | . . . . . . . . . Overload Shots . | . . . . . . . . . Overflow Damage . | . . . . . . . . . Projectiles . | . . . . . . . . . Explosions . | . . . . . . . . . Melee . | . . . . . . . . . Knockbacks . | . . . . . . . . . Impact . | . . . . . . . . . Kinetic . | . . . . . . . . . Secondary . | . . . . . . . . . Self-Inflicted Damage 139 | . . 14 84 . . . 41 . Shots 5 | . . 1 3 . . . 1 . Rammed . | . . . . . . . . . Targets Rammed . | . . . . . . . . . Kicked . | . . . . . . . . . Crushed . | . . . . . . . . . Highest Temperature . | . . . . . . . . . Average Temperature . | . . . . . . . . . Received Heat Transfer 63 | . . . . . . . . 63 Siege Activations . | . . . . . . . . . Robots Corrupted . | . . . . . . . . . Combat Hostiles . | . . . . . . . . . Parts Fried . | . . . . . . . . . Impact Corruptions . | . . . . . . . . . Robots Melted . | . . . . . . . . . Combat Hostiles . | . . . . . . . . . Parts Melted . | . . . . . . . . . Heat Transferred . | . . . . . . . . . Parts Sabotaged . | . . . . . . . . . Parts Stolen . | . . . . . . . . . Parts Stripped . | . . . . . . . . . Power Chain Reactions . | . . . . . . . . . Missiles Intercepted . | . . . . . . . . . Alert | -11 -10 -10 -9 -9 -9 -8 -8 -8 ------- Run | Jun Mat Min Mat Min Exi Min Mat Gar Peak Influence 176 | . 15 64 176 68 . . 27 46 Initial 68 | . . 5 24 68 . . . 17 Average 63 | . 5 64 126 68 . . 15 32 Maximum Alert Level . | . . . . . . . . . Low Security (%) 100 | . 100 100 100 100 . 100 100 100 Level 1 . | . . . . . . . . . Level 2 . | . . . . . . . . . Level 3 . | . . . . . . . . . Level 4 . | . . . . . . . . . Level 5 . | . . . . . . . . . High Security . | . . . . . . . . . Max Security . | . . . . . . . . . Squads Dispatched 1 | . 1 . . . . . . . Investigation . | . . . . . . . . . Extermination . | . . . . . . . . . Reinforcement 1 | . 1 . . . . . . . Assault . | . . . . . . . . . Garrison . | . . . . . . . . . Intercept . | . . . . . . . . . Searches Triggered . | . . . . . . . . . Construction Impeded . | . . . . . . . . . Haulers Reinforced . | . . . . . . . . . Active Scanning Responses . | . . . . . . . . . Cargo Convoy Interrupts . | . . . . . . . . . Stealth | -11 -10 -10 -9 -9 -9 -8 -8 -8 --------- Run | Jun Mat Min Mat Min Exi Min Mat Gar Distress Signals 2 | . 1 . 1 . . . . . Communications Jammed . | . . . . . . . . . Distress Signals . | . . . . . . . . . Times Spotted 13 | . 5 . 5 . . . . 3 Peak Tracking Total 5 | . 5 . 3 . . . . 3 Tactical Retreats 1 | . . . 1 . . . . . Traps | -11 -10 -10 -9 -9 -9 -8 -8 -8 ------- Run | Jun Mat Min Mat Min Exi Min Mat Gar Traps Triggered 1 | . 1 . . . . . . . Indirectly . | . . . . . . . . . Trap Hack Attempts . | . . . . . . . . . Triggered . | . . . . . . . . . Disarmed . | . . . . . . . . . Reprogrammed . | . . . . . . . . . Reused . | . . . . . . . . . Traps Extracted . | . . . . . . . . . Installed . | . . . . . . . . . Triggered . | . . . . . . . . . Machines | -11 -10 -10 -9 -9 -9 -8 -8 -8 ---------- Run | Jun Mat Min Mat Min Exi Min Mat Gar Machines Disabled 2 | . . . 1 . . . 1 . Max in Single Turn 1 | . . . 1 . . . 1 . Machines Repaired . | . . . . . . . . . Machines Sabotaged . | . . . . . . . . . Overloaded Fab Kills . | . . . . . . . . . Hacking | -11 -10 -10 -9 -9 -9 -8 -8 -8 --------- Run | Jun Mat Min Mat Min Exi Min Mat Gar Machines Accessed 2 | . . . . . . . 1 1 Terminals 1 | . . . . . . . . 1 Fabricators . | . . . . . . . . . Repair Stations . | . . . . . . . . . Recycling Units . | . . . . . . . . . Scanalyzers . | . . . . . . . . . Garrison Access 1 | . . . . . . . 1 . Total Hacks 2 | . . . . . . . 1 1 Successful 2 | . . . . . . . 1 1 Failed . | . . . . . . . . . Catastrophic . | . . . . . . . . . Database Lockouts . | . . . . . . . . . Manual . | . . . . . . . . . Terminals 1 | . . . . . . . . 1 Fabricators . | . . . . . . . . . Repair Stations . | . . . . . . . . . Recycling Units . | . . . . . . . . . Scanalyzers . | . . . . . . . . . Garrison Access 1 | . . . . . . . 1 . Terminal Hacks 1 | . . . . . . . . 1 Patrol Navigation 1 | . . . . . . . . 1 Fabricator Hacks . | . . . . . . . . . Repair Station Hacks . | . . . . . . . . . Recycling Unit Hacks . | . . . . . . . . . Scanalyzer . | . . . . . . . . . Garrison Access Hacks 1 | . . . . . . . 1 . Unlock Access 1 | . . . . . . . 1 . Unauthorized Hacks . | . . . . . . . . . Terminals . | . . . . . . . . . Fabricators . | . . . . . . . . . Repair Stations . | . . . . . . . . . Recycling Units . | . . . . . . . . . Scanalyzers . | . . . . . . . . . Garrison Access . | . . . . . . . . . Data Cores Recovered . | . . . . . . . . . Used . | . . . . . . . . . Hacking Detections . | . . . . . . . . . Full Trace Events . | . . . . . . . . . Feedback Events . | . . . . . . . . . Feedback Blocked . | . . . . . . . . . Robot Schematics Acquired . | . . . . . . . . . Robots Built . | . . . . . . . . . Authchips . | . . . . . . . . . Time . | . . . . . . . . . Total Robot Build Rating . | . . . . . . . . . Part Schematics Acquired . | . . . . . . . . . Parts Built . | . . . . . . . . . Authchips . | . . . . . . . . . Time . | . . . . . . . . . Total Part Build Rating . | . . . . . . . . . Parts Repaired . | . . . . . . . . . Time . | . . . . . . . . . Parts Recycled . | . . . . . . . . . Recycled Matter . | . . . . . . . . . Retrieved Matter . | . . . . . . . . . Retrieved Components . | . . . . . . . . . Parts Scanalyzed . | . . . . . . . . . Part Schematics Acquired . | . . . . . . . . . Parts Damaged . | . . . . . . . . . Bothacking | -11 -10 -10 -9 -9 -9 -8 -8 -8 ------------ Run | Jun Mat Min Mat Min Exi Min Mat Gar Used RIF Installer . | . . . . . . . . . Robots Hacked . | . . . . . . . . . Non-combat . | . . . . . . . . . Combat . | . . . . . . . . . Robot Hacks Applied . | . . . . . . . . . Relay Couplers Released . | . . . . . . . . . Fabnet Peak Effective % . | . . . . . . . . . Robots Rewired . | . . . . . . . . . Allies Hacked . | . . . . . . . . . Hacks Repelled . | . . . . . . . . . Allies | -11 -10 -10 -9 -9 -9 -8 -8 -8 -------- Run | Jun Mat Min Mat Min Exi Min Mat Gar Total Allies 3 | . . . . 3 . . . . Largest Group 3 | . . . . 3 3 . . . Highest-Rated Group 72 | . . . . 72 72 . . . Highest-Rated Ally 31 | . . . . 31 31 . . . Total Orders . | . . . . . . . . . Ally Attacks . | . . . . . . . . . Total Damage . | . . . . . . . . . Kills . | . . . . . . . . . Allies Corrupted . | . . . . . . . . . Allies Melted . | . . . . . . . . . Intel | -11 -10 -10 -9 -9 -9 -8 -8 -8 ------- Run | Jun Mat Min Mat Min Exi Min Mat Gar Robot Analysis Total . | . . . . . . . . . Derelict Logs Recovered . | . . . . . . . . . Drone Launches . | . . . . . . . . . Drone Recoveries . | . . . . . . . . . Exploration | -11 -10 -10 -9 -9 -9 -8 -8 -8 ------------- Run | Jun Mat Min Mat Min Exi Min Mat Gar Turns Passed 1247 | . 32 203 181 340 258 60 110 63 Spaces Moved 790 | 1 64 126 96 198 161 38 67 39 Core 65 | 1 64 . . . . . . . Treads 725 | . . 126 96 198 161 38 67 39 Legs . | . . . . . . . . . Wheels . | . . . . . . . . . Hover . | . . . . . . . . . Flight . | . . . . . . . . . Fastest Speed 50 | 50 50 160 160 160 160 160 160 160 Average Speed 150 | 50 50 160 160 160 160 160 160 160 Slowest Speed 160 | 50 50 160 160 160 160 160 160 160 Overloaded Moves . | . . . . . . . . . Propulsion Burnouts . | . . . . . . . . . Robots Hopped . | . . . . . . . . . Cave-ins Triggered . | . . . . . . . . . Exploration Rate (%) 27 | 2 27 44 17 62 55 23 10 11 Regions Visited 8 Branch Regions 4 Pre-discovered Areas . | . . . . . . . . . Known Exits Taken 5 | . . . 1 1 1 1 1 . Unknown Exits Taken 3 | 1 1 1 . . . . . . Scrap Searched . | . . . . . . . . . Spaces Dug . | . . . . . . . . . Terrain Destroyed 65 | . . 11 34 . 9 . 11 . Melee . | . . . . . . . . . Projectile . | . . . . . . . . . AOE 65 | . . 11 34 . 9 . 11 . Terrain Rammed . | . . . . . . . . . Walls Destroyed . | . . . . . . . . . Machines Disabled . | . . . . . . . . . Actions | -11 -10 -10 -9 -9 -9 -8 -8 -8 --------- Run | Jun Mat Min Mat Min Exi Min Mat Gar Total 834 | . 63 127 118 221 161 37 68 39 Wait 39 | . . . 15 24 . . . . Move 783 | . 63 125 95 197 160 37 67 39 Hop . | . . . . . . . . . Pick Up 1 | . . 1 . . . . . . Fast Attach . | . . . . . . . . . Attach 1 | . . . 1 . . . . . Detach 1 | . . . 1 . . . . . Swap . | . . . . . . . . . Drop . | . . . . . . . . . Fire 9 | . . 1 6 . 1 . 1 . Melee . | . . . . . . . . . Ram . | . . . . . . . . . Kick . | . . . . . . . . . Crush . | . . . . . . . . . Escape Stasis . | . . . . . . . . . Rewire . | . . . . . . . . . Trap . | . . . . . . . . . Miscellaneous . | . . . . . . . . . Route ------- -11/Junkyard -10/Materials -10/Mines -9/Materials -9/Mines -9/Exiles -8/Mines -8/Materials -8/Garrison History --------- Turn | Location | Event 1 | -11/Junkyard | Discovered new exit (range 0) 1 | -11/Junkyard | Entered Materials 31 | -10/Materials | Discovered new exit (range 6) 33 | -10/Materials | Entered Mines 144 | -10/Mines | Found a damaged Exp. Sensor Array with a note attached 147 | -10/Mines | Found Prototype Device 228 | -10/Mines | Discovered new exit (range 7) 236 | -10/Mines | Entered Materials 236 | -9/Materials | Evolved 2 slots: Utility x2 236 | -9/Materials | Identified Exp. Sensor Array 314 | -9/Materials | Build established: Mutant 399 | -9/Materials | Discovered new exit (range 7) 415 | -9/Materials | Identified exit to Mines 417 | -9/Materials | Entered Mines 501 | -9/Mines | Received a Mining Laser from a helpful Derelict 675 | -9/Mines | Assembled infested the area 750 | -9/Mines | Deemed a non-threat by the Exiles lab entrance 750 | -9/Mines | Discovered new exit (range 5) 755 | -9/Mines | Identified exit to Exiles 757 | -9/Mines | Entered Exiles 757 | -9/Exiles | Accompanied by 3 allies 787 | -9/Exiles | Led the pair of lost Derelicts to a safe place 796 | -9/Exiles | Met 8R-AWN 823 | -9/Exiles | Met EX-HEX 866 | -9/Exiles | Met EX-BIN 885 | -9/Exiles | Aligned with FarCom system 887 | -9/Exiles | Given EX-Vault access code 943 | -9/Exiles | Met EX-DEC 998 | -9/Exiles | Discovered new exit (range 14) 1014 | -9/Exiles | Identified exit to Mines 1015 | -9/Exiles | Entered Mines 1067 | -8/Mines | Discovered new exit (range 6) 1073 | -8/Mines | Identified exit to Materials 1075 | -8/Mines | Entered Materials 1075 | -8/Materials | Evolved 2 slots: Utility x2 1185 | -8/Materials | Identified exit to Garrison 1185 | -8/Materials | Entered Garrison 1234 | -8/Garrison | Triggered checkpoint 1248 | -8/Garrison | Self-destructed Last Messages --------------- 01120_ Material Compactor disabled. 01142_ K-01 Serf collects debris. 01155_ T-07 Excavator is excavating. 01164_ K-01 Serf cleans the Terminal. 01174_ K-01 Serf collects debris. 01185_ Connecting with Garrison Access... >>Unlock Access door unlocked. 01185_ EXIT=UNLOCKED: GARRISON LOCATION=GARRISON GOAL=ESCAPE 01185_ Receiving FarCom transmissions... 01205_ Connecting with Garrison Terminal... >>Download(Navigation) Retrieving Factory patrol records... Downloaded protocol data. [SPECIAL: For the next 500 turns your loot boxes might contain... AWS/Gauss!] 01222_ Penetrated by Slug. 01234_ Beams of light sweep through the air. An alarm sounds. Map ----- +----------------------------------------------------+ | | | | | | | | | | | | | | | | | | | | | | | | | | | | | | | | | ????????????????????????????????????????????? | | ????????????????????????????????????????????? | | ????????????????????????????????????????????? | | ????????????????????????????????????????????? | | ????????????????????????????????????????????? | | ?????????????????????#####??????????????????? | | ?????????????????????""""#??????????????????? | | ????????????????##### #### ##???????????? | | ????????????????# #????????? | | ????????????????# @ #????????? | | ?????????#####??# ####T#####???????????????? | | ?????????# #??#g #????????????????????????? | | ?????????# #??# #????????????????????????? | | ?????????# #??# g###??????????????????????? | | ?????????# #??# #??????????????????????? | | ?????????# #??# #??????????????????????? | | ?????????# #??# #??????????????????????? | | ?????????# #??# #??????????????????????? | | ?????????# #??# ###??????????????????????? | | ?????????# #??# h#????????????????????????? | | ?????????# #??# #????????????????????????? | | ????###### #### ##############???????????? | | ????#" ??????????? | | ????#"T"## ??????????? | | ????###### ??????????? | | ?????????#######################????????????? | | ????????????????????????????????????????????? | | ????????????????????????????????????????????? | | ????????????????????????????????????????????? | | ????????????????????????????????????????????? | | ????????????????????????????????????????????? | | ????????????????????????????????????????????? | | ????????????????????????????????????????????? | | ????????????????????????????????????????????? | +----------------------------------------------------+ Best States ------------- Heat Dissipation 31 Energy Generation 14 Energy Capacity 160 Matter Stores 100 Matter Capacity 300 Sight Range 16 Robot Scan Range 20 Terrain Scan Density 10 Armor Coverage 450 Evasion (%) 50 Recoil Reduction 2 Item Schematics ----------------- None Robot Schematics ------------------ None Fabricated ------------ Nothing Alien Tech Used ----------------- None Achievements -------------- None Challenges ------------ None Cogshop Purchases (8) ----------------------- Mni. Grenade Launcher (1049) Med. Armor Plating (699) Med. Armor Plating (699) Spk. Treads (874) Spk. Treads (874) Imp. Signal Interpreter (696) Lrn. Tractor Beam (787) Lgt. Nuclear Core (738) Game ------ Seed BeamNullSword Manual? 1 Play Time 00:06:23 Cumulative 366.9 hours Start 2023.02.23 @ 10:22:30 End 2023.02.23 @ 10:28:30 Sessions 1 Manual Loads 0 Difficulty Rogue Special Mode AFD2019/Pay2Buy Game No. 425 Rogue 425 Adventurer 0 Explorer 0 Win Type - Total 0 Types 0/0/0/0/0/0/0/0/0 Lore% 51 Gallery% 74 Achievement% 61 Wizard Run 0 Options --------- ASCII 0 Keyboard 0 Movement Mouse Keybinds 0 Fullscreen 2 Font 24/Smallcaps Map View 76x50 Tactical HUD 1 Map Filters NONE Filters NONE Steam 1 RUN: d39224df-723a-4722-8902-0273181c7a35